bitfinex/quotes_SOLUSD_20250805
["timestamp","ask_amount","ask_price","bid_price","bid_amount"]
[1754422781939,8.53720085,163.81,163.8,43.12]
[1754422782622,14.64183426,163.81,163.78,43.12]
[1754422782820,7.83720085,163.79,163.78,43.18]
[1754422783147,0.7,163.8,163.78,43.18]
[1754422783148,6.10388817,163.83,163.78,43.18]
[1754422783315,7.83720085,163.8,163.78,43.18]
[1754422783520,26.0,163.84,163.78,43.18]
[1754422783521,7.83720085,163.81,163.78,43.18]
[1754422783946,7.83720085,163.81,163.79,0.66]
[1754422785341,7.83720085,163.8,163.78,43.18]
[1754422785544,7.83720085,163.79,163.78,43.18]
[1754422789525,7.83720085,163.79,163.78,43.84]
[1754422790632,7.83720085,163.8,163.78,49.94575161]
[1754422791043,7.83720085,163.8,163.79,0.66]
[1754422791927,7.83720085,163.8,163.78,49.28575161]
[1754422792128,7.83720085,163.8,163.78,43.18]
[1754422792342,8.53720085,163.8,163.78,43.18]
[1754422792562,8.53720085,163.8,163.78,49.28566217]
[1754422793067,7.83720085,163.79,163.78,43.18]
[1754422793355,8.53720085,163.79,163.78,43.18]
[1754422793524,7.83720085,163.79,163.78,43.18]
[1754422794939,8.53720085,163.79,163.78,0.06]
[1754422795168,14.64257968,163.79,163.78,0.06]
[1754422796840,8.53720085,163.79,163.78,0.06]
[1754422797039,7.83720085,163.79,163.78,0.06]
[1754422798672,8.53720085,163.79,163.78,0.06]
[1754422798895,14.64257968,163.79,163.78,0.06]
[1754422799362,8.53720085,163.79,163.78,0.06]
[1754422799671,7.83720085,163.79,163.78,0.06]
[1754422800178,32.80499797,163.81,163.78,0.06]
[1754422800179,7.83720085,163.8,163.78,0.72]
[1754422800338,7.83720085,163.79,163.78,0.06]
[1754422800540,15.10621557,163.78,163.72,0.06]
[1754422800780,7.83720085,163.73,163.72,0.06]
[1754422801161,8.53720085,163.73,163.72,0.06]
[1754422801550,7.83720085,163.73,163.72,0.06]
[1754422801751,26.7,163.76,163.72,0.72]
[1754422801963,7.83720085,163.73,163.72,0.72]
[1754422802953,7.83720085,163.73,163.72,0.06]
[1754422804676,8.52720085,163.73,163.72,0.06]
[1754422806591,40.63481704,163.73,163.71,0.1]
[1754422806765,15.6744017,163.71,163.7,0.06]
[1754422806965,15.81656327,163.71,163.7,0.06]
[1754422807189,16.50656327,163.71,163.7,0.06]
[1754422807386,16.50656327,163.71,163.67,40.72452556]
[1754422807690,7.83720085,163.68,163.67,40.72452556]
[1754422807866,8.52720085,163.68,163.67,40.72452556]
[1754422808272,7.83720085,163.68,163.67,40.72452556]
[1754422808684,7.83720085,163.68,163.67,41.42452556]
[1754422809186,7.83720085,163.68,163.67,40.72452556]
[1754422810058,8.52720085,163.68,163.67,40.72452556]
[1754422812192,14.63668276,163.68,163.67,40.72452556]
[1754422813066,14.63668276,163.68,163.66,0.06]
[1754422813482,0.69,163.67,163.66,0.06]
[1754422813783,7.83720085,163.67,163.66,0.06]
[1754422816412,33.83720085,163.7,163.66,0.06]
[1754422816413,26.0,163.7,163.66,0.76]
[1754422816601,7.83720085,163.67,163.66,0.06]
[1754422817663,8.52720085,163.67,163.66,0.06]
[1754422818382,14.63705604,163.67,163.66,0.06]
[1754422818899,40.63705604,163.67,163.66,0.06]
[1754422821102,45.44213338,163.67,163.66,0.06]
[1754422823494,40.63705604,163.67,163.66,0.06]
[1754422823671,33.83720085,163.67,163.66,0.06]
[1754422823997,7.83720085,163.67,163.66,0.76]
[1754422824198,7.83720085,163.67,163.66,0.06]
[1754422824786,37.9329908,163.69,163.66,0.76]
[1754422825091,7.83720085,163.67,163.66,0.76]
[1754422825483,26.0,163.69,163.66,0.76]
[1754422825687,7.83720085,163.67,163.66,0.76]
[1754422826014,7.83720085,163.68,163.66,0.06]
[1754422826305,7.83720085,163.67,163.66,0.06]
[1754422827189,34.52720085,163.7,163.66,0.06]
[1754422827390,7.83720085,163.67,163.66,0.06]
[1754422827595,7.83720085,163.67,163.66,6.17022852]
[1754422827887,7.83720085,163.67,163.66,6.87022852]
[1754422828403,7.83720085,163.67,163.66,0.76]
[1754422828779,7.83720085,163.67,163.66,6.87022852]
[1754422828978,7.83720085,163.67,163.66,0.76]
[1754422829290,7.83720085,163.67,163.66,6.87022852]
[1754422829887,7.83720085,163.68,163.66,6.87022852]
[1754422830092,7.83720085,163.68,163.67,0.7]
[1754422830685,7.83720085,163.69,163.67,0.7]
[1754422830983,7.83720085,163.7,163.67,0.7]
[1754422831184,7.83720085,163.69,163.68,0.7]
[1754422831797,7.83720085,163.69,163.66,0.06]
[1754422831798,8.52720085,163.69,163.66,0.06]
[1754422831996,7.83720085,163.67,163.66,0.06]
[1754422832507,6.25067842,163.71,163.66,0.76]
[1754422832711,7.83720085,163.69,163.66,0.06]
[1754422832902,7.83720085,163.69,163.67,0.7]
[1754422833211,7.83720085,163.68,163.66,0.06]
[1754422833400,7.83720085,163.68,163.66,0.76]
[1754422833602,0.71,163.71,163.67,0.66]
[1754422833798,7.83720085,163.68,163.66,0.06]
[1754422834113,7.83720085,163.68,163.66,43.2]
[1754422834511,7.83720085,163.68,163.67,0.66]
[1754422834895,7.83720085,163.7,163.67,0.66]
[1754422835212,7.83720085,163.7,163.68,0.66]
[1754422835415,6.84814639,163.72,163.68,0.66]
[1754422835416,7.83720085,163.69,163.68,0.66]
[1754422835914,7.83720085,163.69,163.66,43.2]
[1754422836211,7.83720085,163.68,163.66,43.86]
[1754422837292,7.83720085,163.69,163.67,0.66]
[1754422837691,7.83720085,163.69,163.66,43.2]
[1754422837886,13.9463283,163.69,163.66,43.86]
[1754422838924,7.83720085,163.69,163.67,0.66]
[1754422839092,7.83720085,163.69,163.66,43.2]
[1754422839293,7.83720085,163.69,163.67,0.66]
[1754422839799,13.94631143,163.69,163.67,43.14]
[1754422840002,13.94631143,163.69,163.67,43.8]
[1754422840201,13.94631143,163.69,163.66,0.06]
[1754422840403,14.65631143,163.69,163.66,43.2]
[1754422840598,13.94631143,163.69,163.66,43.86]
[1754422840895,14.65631143,163.69,163.66,43.86]
[1754422841092,7.83720085,163.67,163.66,0.06]
[1754422841524,8.54720085,163.67,163.66,0.06]
[1754422842032,14.65705604,163.67,163.65,0.06]
[1754422842233,7.83720085,163.65,163.63,0.06]
[1754422842386,7.83720085,163.64,163.63,0.06]
[1754422842588,8.54720085,163.64,163.63,0.06]
[1754422844416,7.83720085,163.64,163.63,0.06]
[1754422845421,13.94817616,163.64,163.63,0.06]
[1754422845828,14.65817616,163.64,163.63,0.06]
[1754422846122,18.76353285,163.64,163.63,0.06]
[1754422847737,0.14216157,163.63,163.62,0.06]
[1754422847937,12.79471911,163.63,163.62,0.06]
[1754422848228,12.93688068,163.63,163.62,0.06]
[1754422848810,19.04822945,163.63,163.62,0.06]
[1754422850724,6.11284308,163.59,163.57,0.1]
[1754422851026,12.22688068,163.58,163.57,0.1]
[1754422851228,12.22688068,163.58,163.56,0.1]
[1754422851475,8.54720085,163.57,163.56,0.1]
[1754422852543,14.66079136,163.57,163.56,0.1]
[1754422852833,18.76614805,163.57,163.56,0.1]
[1754422853011,18.05614805,163.57,163.56,0.1]
[1754422853643,7.83720085,163.57,163.56,0.76]
[1754422855331,17.18143403,163.59,163.56,0.76]
[1754422855755,17.18143403,163.59,163.56,0.1]
[1754422855920,17.18143403,163.59,163.57,0.66]
[1754422856323,17.18143403,163.59,163.56,0.1]
[1754422856324,7.83720085,163.58,163.56,0.1]
[1754422856559,15.4571185,163.59,163.57,0.66]
[1754422857245,15.4571185,163.59,163.56,0.1]
[1754422857246,16.1671185,163.59,163.56,0.1]
[1754422857450,0.71,163.58,163.56,0.1]
[1754422857654,7.83720085,163.57,163.56,0.1]
[1754422858148,7.83720085,163.57,163.56,0.76]
[1754422858339,9.34423318,163.59,163.56,0.76]
[1754422858543,17.18143403,163.59,163.56,6.87394531]
[1754422858741,17.18143403,163.59,163.56,6.21394531]
[1754422858960,17.18143403,163.59,163.57,0.66]
[1754422859249,17.18143403,163.59,163.58,0.66]
[1754422859826,9.34423318,163.59,163.58,0.66]
[1754422860019,9.34423318,163.59,163.58,14.61041762]
[1754422860747,9.34423318,163.59,163.58,29.85879476]
[1754422861233,9.34423318,163.59,163.58,14.75257919]
[1754422862553,0.03,163.63,163.6,0.14216157]
[1754422862723,0.03,163.63,163.62,23.08557799]
[1754422862927,0.03,163.63,163.62,66.90557799]
[1754422863531,0.03,163.63,163.62,92.90557799]
[1754422864042,0.03,163.63,163.62,99.01730027]
[1754422864237,0.03,163.7,163.64,0.14216157]
[1754422864434,0.03,163.7,163.66,7.83720085]
[1754422864638,0.03,163.7,163.67,0.68]
[1754422867055,7.86720085,163.7,163.65,0.68]
[1754422867233,7.83720085,163.67,163.64,6.11060342]
[1754422867637,7.83720085,163.67,163.63,6.79122194]
[1754422868056,8.50720085,163.66,163.62,49.27162459]
[1754422868270,8.50720085,163.66,163.62,49.95162459]
[1754422869268,7.83720085,163.65,163.62,49.95162459]
[1754422870507,7.83720085,163.64,163.62,43.16]
[1754422870857,7.83720085,163.63,163.62,43.16]
[1754422871280,7.83720085,163.63,163.62,49.27172228]
[1754422871475,7.83720085,163.64,163.62,49.27172228]
[1754422872471,7.83720085,163.63,163.62,43.16]
[1754422872676,8.50720085,163.63,163.62,43.16]
[1754422872991,7.83720085,163.63,163.62,43.16]
[1754422873379,8.50720085,163.63,163.62,43.16]
[1754422874473,8.50720085,163.63,163.59,49.25275126]
[1754422874676,7.83720085,163.6,163.59,49.25275126]
[1754422875580,7.83720085,163.61,163.59,49.25275126]
[1754422875785,7.83720085,163.61,163.6,0.68]
[1754422876187,7.83720085,163.61,163.59,49.25275126]
[1754422876384,7.83720085,163.61,163.59,49.93275126]
[1754422878800,7.83720085,163.62,163.59,49.93275126]
[1754422878969,7.83720085,163.61,163.59,49.93275126]
[1754422879174,6.11108083,163.64,163.59,49.25275126]
[1754422879380,7.83720085,163.6,163.59,49.25275126]
[1754422879779,7.83720085,163.6,163.59,43.14]
[1754422880279,8.50720085,163.6,163.59,43.14]
[1754422881697,8.50720085,163.6,163.57,49.31344818]
[1754422881872,7.83720085,163.59,163.57,49.31344818]
[1754422882290,7.83720085,163.59,163.57,49.99344818]
[1754422883305,7.83720085,163.6,163.58,0.68]
[1754422883600,7.83720085,163.6,163.59,43.14]
[1754422885516,8.50720085,163.6,163.59,43.14]
[1754422885869,8.50720085,163.6,163.57,43.2]
[1754422886089,7.83720085,163.58,163.57,43.2]
[1754422887102,8.50720085,163.58,163.57,0.06]
[1754422887988,0.67,163.58,163.57,0.06]
[1754422888203,8.50720085,163.58,163.57,0.06]
[1754422888501,14.62041762,163.58,163.57,0.06]
[1754422889987,8.50720085,163.58,163.57,0.06]
[1754422891101,32.11296225,163.59,163.57,0.06]
[1754422891285,6.7825475,163.6,163.57,0.06]
[1754422891492,7.83720085,163.58,163.57,0.06]
[1754422892002,8.50720085,163.58,163.57,0.06]
[1754422892200,34.64936242,163.58,163.57,0.06]
[1754422892911,34.64936242,163.58,163.52,43.2]
[1754422892912,15.24837714,163.55,163.52,0.06]
[1754422893090,26.0,163.49,163.43,2.449255]
[1754422893417,26.0,163.49,163.42,0.1]
[1754422893418,7.83720085,163.44,163.42,0.1]
[1754422893708,7.83720085,163.43,163.42,0.1]
[1754422894289,7.83720085,163.43,163.42,0.81]
[1754422895710,7.83720085,163.43,163.42,0.1]
[1754422897184,7.83720085,163.43,163.42,6.21920205]
[1754422897914,7.83720085,163.43,163.42,0.1]
[1754422899280,0.68,163.45,163.42,6.21920205]
[1754422899504,0.68,163.48,163.43,0.71]
[1754422899687,7.83720085,163.44,163.42,0.1]
[1754422899886,7.83720085,163.43,163.42,0.1]
[1754422900790,8.51720085,163.43,163.42,0.1]
[1754422901539,15.10621557,163.42,163.39,0.1]
[1754422901721,47.79435274,163.4,163.39,0.1]
[1754422902083,48.47435274,163.4,163.39,0.1]
[1754422902278,48.61651431,163.4,163.39,0.1]
[1754422902583,48.61651431,163.4,163.32,43.18]
[1754422902584,15.24837714,163.39,163.32,43.18]
[1754422902895,7.83720085,163.33,163.32,49.30285181]
[1754422903590,7.83720085,163.33,163.32,43.18]
[1754422904108,8.51720085,163.33,163.28,0.71]
[1754422904277,7.83720085,163.31,163.29,0.71]
[1754422904828,12.60993077,163.31,163.3,0.71]
[1754422904995,12.60993077,163.31,163.27,64.61688368]
[1754422905188,12.60993077,163.31,163.28,0.71]
[1754422905380,12.60993077,163.31,163.29,0.71]
[1754422905583,12.60993077,163.31,163.3,0.71]
[1754422906819,12.60993077,163.31,163.3,6.83369871]
[1754422907728,12.60993077,163.31,163.3,50.03369871]
[1754422907936,12.60993077,163.31,163.3,49.32369871]
[1754422908324,12.60993077,163.31,163.3,43.2]
[1754422908525,13.28993077,163.31,163.3,43.2]
[1754422908727,13.28993077,163.31,163.27,49.30453609]
[1754422908928,0.68,163.3,163.27,49.30453609]
[1754422909252,12.60993077,163.28,163.27,43.18]
[1754422909933,12.60993077,163.28,163.27,49.30482391]
[1754422911610,0.68,163.3,163.27,49.30482391]
[1754422911611,0.68,163.3,163.27,43.18]
[1754422911915,12.60993077,163.28,163.27,49.30482391]
[1754422912518,0.68,163.3,163.27,43.18]
[1754422912733,12.60993077,163.28,163.27,43.18]
[1754422913538,13.28993077,163.28,163.25,0.1]
[1754422913738,12.60993077,163.26,163.25,0.1]
[1754422915122,12.60993077,163.26,163.25,6.22557427]
[1754422915316,12.60993077,163.26,163.25,0.1]
[1754422916337,17.61180459,163.32,163.25,0.1]
[1754422916338,0.68,163.31,163.25,50.15557427]
[1754422916546,12.60993077,163.27,163.25,43.32]
[1754422916847,12.60993077,163.26,163.25,43.32]
[1754422917055,26.0,163.31,163.25,50.15557427]
[1754422917235,12.60993077,163.28,163.25,49.44557427]
[1754422917420,12.60993077,163.28,163.26,0.71]
[1754422917624,12.60993077,163.27,163.26,0.71]
[1754422917823,12.60993077,163.27,163.26,6.12507654]
[1754422918025,12.60993077,163.27,163.26,6.83507654]
[1754422918661,26.68,163.31,163.26,6.83507654]
[1754422918855,12.60993077,163.28,163.26,6.83507654]
[1754422919520,12.60993077,163.27,163.26,6.12507654]
[1754422919950,12.60993077,163.27,163.25,49.4454592]
[1754422920147,12.60993077,163.27,163.25,50.1554592]
[1754422920354,26.68,163.31,163.26,0.71]
[1754422920521,12.60993077,163.29,163.25,77.36932565]
[1754422920721,12.60993077,163.29,163.26,0.71]
[1754422921130,12.60993077,163.29,163.27,0.71]
[1754422921443,0.68,163.32,163.28,0.71]
[1754422921649,12.60993077,163.29,163.26,0.71]
[1754422921847,12.60993077,163.29,163.27,6.12482391]
[1754422922038,12.60993077,163.29,163.27,6.83482391]
[1754422922229,26.0,163.33,163.27,6.12482391]
[1754422922429,12.60993077,163.31,163.28,43.93]
[1754422922649,12.60993077,163.32,163.29,0.71]
[1754422922827,12.60993077,163.34,163.29,13.31993077]
[1754422923031,0.68,163.37,163.3,0.71]
[1754422923231,12.60993077,163.34,163.31,43.22]
[1754422923749,12.60993077,163.34,163.31,43.88]
[1754422924045,12.60993077,163.34,163.31,50.00299379]
[1754422924646,12.60993077,163.34,163.31,49.34299379]
[1754422924844,8.58913257,163.34,163.31,49.34299379]
[1754422925625,7.87913257,163.33,163.31,49.34299379]
[1754422926149,7.87913257,163.33,163.31,50.00299379]
[1754422927451,8.58913257,163.32,163.31,43.22]
[1754422927668,8.58913257,163.32,163.28,0.66]
[1754422927827,0.71,163.31,163.3,43.22]
[1754422928027,8.58913257,163.31,163.27,6.12467661]
[1754422928235,26.0,163.32,163.28,43.22]
[1754422928435,7.87913257,163.29,163.28,43.22]
[1754422928636,7.87913257,163.31,163.28,43.88]
[1754422928823,7.87913257,163.31,163.29,0.66]
[1754422929028,7.87913257,163.31,163.29,6.7840676]
[1754422930932,7.87913257,163.3,163.26,0.66]
[1754422931132,7.87913257,163.28,163.27,43.22]
[1754422931438,0.71,163.3,163.27,43.22]
[1754422931761,7.87913257,163.29,163.27,43.22]
[1754422931959,7.87913257,163.29,163.27,43.88]
[1754422932140,7.87913257,163.29,163.27,43.22]
[1754422932650,7.87913257,163.29,163.27,49.34481318]
[1754422932848,7.87913257,163.28,163.27,43.22]
[1754422934040,7.87913257,163.29,163.27,50.00482391]
[1754422935151,7.87913257,163.29,163.27,43.22]
[1754422936665,7.87913257,163.29,163.27,50.00480733]
[1754422937942,7.87913257,163.3,163.28,0.66]
[1754422938167,15.10621557,163.34,163.29,51.75913257]
[1754422938168,7.87913257,163.34,163.29,51.75913257]
[1754422938582,7.87913257,163.34,163.3,0.66]
[1754422938866,7.87913257,163.34,163.31,43.22]
[1754422939073,7.87913257,163.34,163.32,0.66]
[1754422939283,7.87913257,163.35,163.32,0.66]
[1754422939840,7.87913257,163.35,163.32,6.78293553]
[1754422940140,7.87913257,163.36,163.33,0.66]
[1754422940989,8.58913257,163.36,163.32,6.12293553]
[1754422941876,4.07126979,163.37,163.32,6.12293553]
[1754422942047,8.58913257,163.36,163.32,6.78293553]
[1754422942650,8.58913257,163.35,163.32,6.12293553]
[1754422942884,7.87913257,163.34,163.31,49.34327118]
[1754422943086,7.87913257,163.33,163.31,43.22]
[1754422943762,8.58913257,163.33,163.31,43.22]
[1754422944267,7.87913257,163.32,163.31,43.22]
[1754422944470,8.58913257,163.32,163.31,43.22]
[1754422944770,8.58913257,163.32,163.29,43.2]
[1754422945080,7.87913257,163.3,163.29,43.2]
[1754422945574,7.87913257,163.31,163.29,43.2]
[1754422945781,7.87913257,163.3,163.29,43.2]
[1754422946655,7.87913257,163.31,163.29,49.98407373]
[1754422947474,7.87913257,163.32,163.3,0.66]
[1754422948966,7.87913257,163.32,163.29,49.32407373]
[1754422949154,7.87913257,163.32,163.29,49.98407373]
[1754422949556,4.08588322,163.33,163.29,49.32407373]
[1754422949753,6.12153527,163.36,163.29,49.32407373]
[1754422949754,11.96501579,163.35,163.3,8.53913257]
[1754422949953,11.96501579,163.35,163.31,43.86]
[1754422950168,6.83115048,163.37,163.32,0.66]
[1754422950169,7.87913257,163.34,163.32,0.66]
[1754422950786,7.87913257,163.34,163.33,0.66]
[1754422951073,4.09086723,163.36,163.33,43.86]
[1754422951286,7.87913257,163.37,163.34,0.66]
[1754422951467,8.58913257,163.37,163.33,43.2]
[1754422951883,8.58913257,163.37,163.33,43.86]
[1754422952181,8.58913257,163.36,163.33,43.2]
[1754422952369,7.87913257,163.35,163.33,43.2]
[1754422952891,0.71,163.35,163.33,43.2]
[1754422953173,7.87913257,163.35,163.33,49.32251811]
[1754422953759,7.87913257,163.35,163.33,43.2]
[1754422954775,8.58913257,163.34,163.33,43.2]
[1754422955077,7.87913257,163.35,163.32,6.12285956]
[1754422955278,7.87913257,163.35,163.33,0.72]
[1754422956953,7.87913257,163.35,163.31,50.10319518]
[1754422957153,8.58913257,163.34,163.31,50.10319518]
[1754422957773,7.87913257,163.34,163.31,50.10319518]
[1754422958170,7.87913257,163.35,163.32,0.72]
[1754422958958,7.87913257,163.35,163.33,0.72]
[1754422959182,4.09022621,163.37,163.34,43.2]
[1754422959381,8.58913257,163.38,163.34,43.2]
[1754422959683,12.67935878,163.38,163.34,43.92]
[1754422959859,12.67935878,163.38,163.34,43.2]
[1754422960060,11.96935878,163.38,163.35,0.72]
[1754422960287,76.05008112,163.4,163.35,0.72]
[1754422960288,7.87913257,163.39,163.35,0.72]
[1754422960498,11.97007361,163.39,163.36,0.72]
[1754422960974,12.68007361,163.39,163.36,6.84140604]
[1754422961169,8.58913257,163.38,163.35,6.12172157]
[1754422961559,8.58913257,163.38,163.35,6.84172157]
[1754422961982,11.97007361,163.39,163.35,6.84172157]
[1754422962296,12.68007361,163.39,163.35,6.84172157]
[1754422962988,7.87913257,163.37,163.32,0.72]
[1754422963180,7.87913257,163.34,163.33,43.2]
[1754422963378,8.58913257,163.34,163.31,43.26]
[1754422963570,7.87913257,163.33,163.31,43.26]
[1754422963898,0.71,163.33,163.31,43.26]
[1754422964129,7.87913257,163.34,163.31,49.38325868]
[1754422964391,8.58913257,163.34,163.31,49.38325868]
[1754422965070,7.87913257,163.34,163.31,50.10325868]
[1754422966186,8.58913257,163.34,163.31,43.26]
[1754422966987,7.87913257,163.32,163.31,43.26]
[1754422967359,8.58913257,163.32,163.31,43.26]
[1754422967591,8.58913257,163.32,163.31,0.06]
[1754422967897,12.68232879,163.32,163.31,0.06]
[1754422969078,59.91149317,163.32,163.31,0.06]
[1754422969470,60.05365474,163.32,163.31,0.06]
[1754422969779,37.15594446,163.32,163.31,0.06]
[1754422971273,37.4402676,163.32,163.31,0.06]
[1754422971475,42.55668741,163.32,163.31,0.06]
[1754422972079,26.0,163.29,163.25,0.1]
[1754422972280,7.87913257,163.26,163.25,0.1]
[1754422972902,8.58913257,163.26,163.25,0.1]
[1754422973107,23.97967128,163.26,163.25,0.1]
[1754422973306,103.38976912,163.26,163.25,0.1]
[1754422973883,110.83867684,163.26,163.25,0.1]
[1754422974797,110.12867684,163.26,163.25,0.82]
[1754422975107,110.12867684,163.26,163.25,0.1]
[1754422975304,33.44890772,163.26,163.25,0.1]
[1754422975490,47.45323935,163.26,163.25,0.1]
[1754422975805,63.26945492,163.26,163.25,0.1]
[1754422976105,67.34943134,163.26,163.25,0.1]
[1754422976669,41.32804029,163.26,163.25,0.1]
[1754422977312,47.45323935,163.26,163.25,0.1]
[1754422977617,41.32804029,163.26,163.25,0.1]
[1754422977915,15.32804029,163.26,163.25,0.1]
[1754422981188,21.45323935,163.26,163.25,0.1]
[1754422981389,22.16323935,163.26,163.25,0.1]
[1754422981583,7.44890772,163.26,163.25,0.1]
[1754422981787,15.32804029,163.26,163.25,0.1]
[1754422982501,7.44890772,163.26,163.25,14.96686841]
[1754422982685,6.72890772,163.26,163.25,14.96686841]
[1754422982902,5.95890772,163.26,163.25,14.96686841]
[1754422984189,5.95890772,163.26,163.25,14.24686841]
[1754422985924,5.95890772,163.26,163.25,6.22557427]
[1754422986521,5.95890772,163.26,163.25,14.10470684]
[1754422989325,5.95890772,163.26,163.25,6.22557427]
[1754422989507,5.95890772,163.26,163.25,14.10470684]
[1754422991723,5.95890772,163.26,163.25,6.22557427]
[1754422993413,6.63890772,163.26,163.25,6.22557427]
[1754422993609,6.63890772,163.26,163.25,0.1]
[1754422993922,14.51804029,163.26,163.25,0.1]
[1754422994494,5.95890772,163.26,163.25,0.1]
[1754422994695,5.95890772,163.26,163.25,6.22557427]
[1754422996223,5.95890772,163.26,163.25,14.24686841]
[1754422996930,5.95890772,163.26,163.25,57.44686841]
[1754422997122,5.95890772,163.26,163.25,49.56773584]
[1754422997325,5.95890772,163.26,163.25,57.44686841]
[1754422997816,5.95890772,163.26,163.25,72.55308398]
[1754422998324,0.03,163.28,163.27,0.14216157]
[1754422998507,0.03,163.28,163.27,23.12750971]
[1754423000014,0.03,163.28,163.27,29.25233362]
[1754423000325,7.87913257,163.34,163.27,44.56439339]
[1754423000645,7.87913257,163.4,163.34,0.14216157]
[1754423000646,0.03,163.39,163.34,0.14216157]
[1754423000935,0.71,163.39,163.35,51.05913257]
[1754423001100,0.68,163.38,163.35,51.05913257]
[1754423001540,0.03,163.39,163.35,43.18]
[1754423001541,0.68,163.37,163.35,43.18]
[1754423002298,0.68,163.37,163.36,6.12144955]
[1754423002606,7.90913257,163.39,163.35,43.18]
[1754423002828,0.68,163.36,163.35,43.18]
[1754423003635,0.68,163.36,163.35,49.3018243]
[1754423004344,7.90913257,163.39,163.35,49.3018243]
[1754423004516,0.68,163.38,163.35,49.3018243]
[1754423004823,0.68,163.37,163.35,49.3018243]
[1754423005617,0.68,163.37,163.35,57.18095687]
[1754423005820,0.68,163.37,163.35,43.18]
[1754423006138,0.68,163.36,163.35,43.18]
[1754423006721,0.68,163.38,163.35,49.30172954]
[1754423006926,0.68,163.37,163.35,49.30172954]
[1754423007631,0.68,163.36,163.35,49.30172954]
[1754423008051,0.68,163.36,163.35,43.18]
[1754423008216,7.90913257,163.39,163.35,49.3018243]
[1754423008414,0.68,163.38,163.35,49.3018243]
[1754423008715,0.68,163.38,163.35,57.18095687]
[1754423009618,0.68,163.37,163.35,43.18]
[1754423009817,7.87913257,163.36,163.35,43.18]
[1754423010211,8.55913257,163.36,163.35,43.18]
[1754423012239,0.68,163.36,163.35,43.18]
[1754423012538,8.55913257,163.36,163.35,43.18]
[1754423012749,0.68,163.36,163.35,43.18]
[1754423014616,8.55913257,163.36,163.35,43.18]
[1754423014819,0.68,163.36,163.35,43.18]
[1754423016320,7.90913257,163.38,163.35,43.18]
[1754423016663,0.72,163.36,163.35,43.18]
[1754423017043,8.59913257,163.36,163.35,43.18]
[1754423017350,0.75,163.38,163.35,49.30181274]
[1754423017519,0.75,163.38,163.35,43.18]
[1754423017847,0.72,163.37,163.35,43.18]
[1754423018432,0.72,163.36,163.35,43.18]
[1754423018822,8.62913257,163.38,163.35,49.3018243]
[1754423019025,0.72,163.37,163.35,49.3018243]
[1754423019340,0.72,163.37,163.35,43.18]
[1754423019838,0.72,163.37,163.27,79.21147484]
[1754423019839,7.87913257,163.36,163.27,79.21147484]
[1754423020026,7.87913257,163.32,163.28,49.28444879]
[1754423020223,0.72,163.31,163.3,7.909133]
[1754423020427,7.87913257,163.32,163.3,43.16]
[1754423021158,8.59913257,163.32,163.3,49.28369703]
[1754423021653,0.72,163.31,163.3,43.16]
[1754423021849,8.59913257,163.31,163.3,43.16]
[1754423023355,7.87913257,163.31,163.3,43.16]
[1754423023535,8.59913257,163.31,163.3,43.16]
[1754423023734,8.59913257,163.31,163.26,0.14216157]
[1754423023941,8.59913257,163.3,163.27,43.16]
[1754423024236,8.59913257,163.29,163.27,43.16]
[1754423024648,0.72,163.28,163.27,43.16]
[1754423025835,7.87913257,163.3,163.27,43.16]
[1754423026041,0.72,163.29,163.27,43.16]
[1754423027961,7.87913257,163.3,163.27,49.28477556]
[1754423028354,8.59913257,163.3,163.27,49.28477556]
[1754423029062,7.87913257,163.3,163.27,49.28477556]
[1754423029237,7.87913257,163.33,163.28,0.14216157]
[1754423029435,7.87913257,163.33,163.29,43.16]
[1754423030076,0.72,163.32,163.29,43.16]
[1754423030238,8.59913257,163.34,163.29,51.03913257]